bitfinex/quotes_ETHUSD_20240828
["timestamp","ask_amount","ask_price","bid_price","bid_amount"]
[1724845080501,0.32460113,2531.5,2530.8,0.14359575]
[1724845080700,0.32460113,2531.5,2530.6,2.4979]
[1724845080923,0.07104648,2531.5,2530.9,0.14666107]
[1724845081092,0.07104648,2531.5,2530.6,2.4979]
[1724845081428,0.07104648,2531.5,2530.7,0.14666107]
[1724845083936,2.4645,2531.6,2530.7,0.14666107]
[1724845084138,2.4645,2531.6,2530.7,0.41111718]
[1724845086441,0.07104648,2531.5,2530.7,0.41111718]
[1724845088130,2.473,2531.4,2530.7,0.14666107]
[1724845088293,2.473,2531.2,2530.3,0.1223733]
[1724845088496,2.473,2531.0,2530.4,0.13544137]
[1724845088704,2.473,2530.8,2530.4,0.13544137]
[1724845089001,0.07104648,2530.7,2530.4,0.13544137]
[1724845090040,2.473,2530.8,2530.4,0.13544137]
[1724845090210,2.473,2530.8,2530.4,0.21447222]
[1724845091749,0.07104648,2530.7,2530.4,0.13544137]
[1724845092840,2.473,2530.8,2530.4,0.13544137]
[1724845094653,2.3714,2530.6,2530.4,0.13544137]
[1724845094804,2.68669113,2530.5,2530.4,0.13544137]
[1724845095000,2.44244648,2530.5,2530.4,0.13544137]
[1724845102725,0.07104648,2530.5,2530.4,0.13544137]
[1724845102929,3.0,2530.8,2530.4,0.13544137]
[1724845102930,0.07104648,2530.7,2530.4,0.13544137]
[1724845103230,0.37104648,2530.7,2530.4,0.13544137]
[1724845104180,2.4871,2530.6,2530.4,0.13544137]
[1724845104352,0.07104648,2530.5,2530.4,0.13544137]
[1724845107686,2.52444648,2530.9,2530.4,0.13544137]
[1724845107884,3.0,2530.8,2530.4,0.13544137]
[1724845108045,0.07104648,2530.7,2530.4,0.13544137]
[1724845108797,2.2831,2530.6,2530.4,0.13544137]
[1724845108950,0.07104648,2530.5,2530.4,0.13544137]
[1724845109285,0.07104648,2530.5,2530.3,0.1223733]
[1724845109488,0.66126351,2530.5,2530.3,0.1223733]
[1724845109996,3.66126351,2530.5,2530.4,0.13476117]
[1724845110165,3.66126351,2530.5,2530.3,0.1223733]
[1724845111600,2.4616,2530.4,2530.3,0.1223733]
[1724845111895,6.07388635,2530.4,2530.3,0.1223733]
[1724845112199,6.14493283,2530.4,2530.3,0.1223733]
[1724845112860,3.68333283,2530.4,2530.3,0.1223733]
[1724845113069,2.39,2530.6,2530.3,0.1223733]
[1724845113070,3.07104648,2530.5,2530.3,0.1223733]
[1724845113574,3.0,2530.4,2530.3,0.1223733]
[1724845113786,0.07104648,2530.5,2530.3,0.1223733]
[1724845117482,0.07104648,2530.8,2530.3,0.1223733]
[1724845117709,0.30284648,2530.8,2530.3,0.1223733]
[1724845117927,0.07104648,2530.7,2530.3,0.1223733]
[1724845120374,3.07104648,2530.7,2530.3,0.1223733]
[1724845120579,0.07104648,2530.7,2530.3,0.1223733]
[1724845124899,3.07104648,2530.9,2530.3,0.1223733]
[1724845125086,0.07104648,2530.9,2530.3,0.1223733]
[1724845125393,0.35892254,2530.9,2530.4,0.13355251]
[1724845125684,0.35892254,2530.9,2530.3,0.1223733]
[1724845129717,3.35892254,2530.9,2530.3,0.1223733]
[1724845131381,3.35892254,2530.9,2530.4,0.13354289]
[1724845131699,0.61666366,2530.8,2530.3,0.1223733]
[1724845131877,0.07104648,2530.7,2530.3,0.1223733]
[1724845132597,0.07104648,2530.7,2530.4,0.13354289]
[1724845132916,0.07104648,2530.7,2530.3,0.1223733]
[1724845133112,0.4686051,2530.7,2530.3,0.1223733]
[1724845133608,0.4686051,2530.7,2530.4,0.13354289]
[1724845133924,0.4686051,2530.7,2530.3,0.1223733]
[1724845134596,0.4686051,2530.7,2530.4,0.13354289]
[1724845134822,0.4686051,2530.7,2530.3,0.1223733]
[1724845135007,0.4686051,2530.7,2530.5,0.13354289]
[1724845135212,0.4686051,2530.7,2530.3,0.1223733]
[1724845135909,0.4686051,2530.7,2530.4,0.13354289]
[1724845136214,0.4686051,2530.7,2530.5,0.13354289]
[1724845136416,0.4686051,2530.7,2530.3,0.1223733]
[1724845136924,0.4686051,2530.7,2530.4,0.13337935]
[1724845137224,0.4686051,2530.7,2530.3,0.1223733]
[1724845137429,0.4686051,2530.7,2530.5,0.13337935]
[1724845137599,0.4686051,2530.7,2530.3,0.1223733]
[1724845139621,0.4686051,2530.7,2530.4,0.13332164]
[1724845139825,0.4686051,2530.7,2530.3,0.1223733]
[1724845139997,0.4686051,2530.7,2530.5,0.13332164]
[1724845140194,0.4686051,2530.7,2530.3,0.1223733]
[1724845140499,0.4686051,2530.7,2530.6,0.13347555]
[1724845140693,0.4686051,2530.7,2530.3,0.1223733]
[1724845141303,0.4686051,2530.7,2530.4,0.13347555]
[1724845141631,0.4686051,2530.7,2530.3,0.1223733]
[1724845141810,0.4686051,2530.7,2530.5,0.13347555]
[1724845142025,0.4686051,2530.7,2530.3,0.1223733]
[1724845142419,0.4686051,2530.7,2530.4,0.13347555]
[1724845142626,0.4686051,2530.7,2530.3,0.1223733]
[1724845146105,0.55,2530.6,2530.3,0.1223733]
[1724845146403,0.07104648,2530.5,2530.3,0.1223733]
[1724845149506,2.2968,2530.4,2530.3,0.1223733]
[1724845149704,2.58858465,2530.4,2530.3,0.1223733]
[1724845149946,5.58858465,2530.4,2530.3,0.25598354]
[1724845150117,5.65963113,2530.4,2530.3,0.1223733]
[1724845150319,5.65963113,2530.4,2530.3,0.25598354]
[1724845150521,5.65963113,2530.4,2530.3,0.1223733]
[1724845151168,5.65963113,2530.4,2530.3,0.25679177]
[1724845151365,5.65963113,2530.4,2530.3,0.1223733]
[1724845152020,5.65963113,2530.4,2530.3,0.25679177]
[1724845153016,5.65963113,2530.4,2530.0,2.0]
[1724845153017,3.91283113,2530.4,2530.0,2.0]
[1724845153221,2.3381,2530.2,2530.0,2.0]
[1724845153422,0.07104648,2530.1,2530.0,2.0]
[1724845154319,0.07104648,2530.1,2529.5,0.3957]
[1724845154320,2.4625,2530.0,2529.5,0.3957]
[1724845154525,2.4625,2529.8,2529.5,0.3957]
[1724845154754,0.37940113,2529.7,2529.5,0.3957]
[1724845154951,3.0,2529.7,2529.5,0.3957]
[1724845155149,0.07104648,2529.7,2529.5,2.7978]
[1724845155557,0.07104648,2530.2,2529.6,0.12994748]
[1724845155752,0.61649113,2530.2,2529.5,2.7978]
[1724845155952,0.07104648,2530.2,2529.5,2.7978]
[1724845156914,2.3588,2530.4,2529.5,2.7978]
[1724845157120,0.86148974,2530.3,2529.5,2.7978]
[1724845157320,0.31403113,2530.3,2529.6,0.12994748]
[1724845157534,3.31403113,2530.3,2529.5,2.7978]
[1724845157794,0.56728311,2530.2,2529.5,2.7978]
[1724845157944,0.07104648,2530.1,2529.5,2.7978]
[1724845161076,0.55,2530.0,2529.5,2.7978]
[1724845161395,0.07104648,2529.9,2529.5,2.7978]
[1724845162148,0.07104648,2530.1,2529.5,2.7978]
[1724845162350,0.45207326,2530.1,2529.5,2.7978]
[1724845164092,0.07104648,2530.0,2529.5,2.7978]
[1724845164287,0.07104648,2530.4,2529.5,2.4021]
[1724845164648,2.2721,2530.3,2529.6,0.13036137]
[1724845164844,0.30536113,2530.2,2529.6,0.13036137]
[1724845165052,3.30536113,2530.2,2529.5,2.4021]
[1724845165671,0.30536113,2530.2,2529.5,2.4021]
[1724845165907,0.07104648,2530.3,2529.6,0.07906379]
[1724845166223,0.07104648,2530.8,2529.7,2.43064637]
[1724845166348,2.8077141,2530.7,2529.7,2.68161739]
[1724845166553,0.07104648,2530.6,2529.7,2.55087102]
[1724845166794,0.35892254,2530.6,2529.7,2.55087102]
[1724845168402,3.35892254,2530.6,2529.7,2.55087102]
[1724845168753,3.35892254,2530.6,2529.8,0.13074637]
[1724845168953,3.35892254,2530.6,2529.9,2.2595]
[1724845169358,0.61666366,2530.5,2529.9,2.2595]
[1724845169568,0.07104648,2530.4,2529.9,2.2595]
[1724845173131,0.07104648,2530.5,2530.0,2.47844873]
[1724845173424,0.07104648,2530.6,2530.2,2.3191]
[1724845173635,2.8077141,2530.7,2530.2,2.3191]
[1724845173927,2.8077141,2530.7,2530.2,2.39813678]
[1724845174110,2.8077141,2530.7,2530.4,2.3191]
[1724845174435,0.07104648,2530.9,2530.4,2.3191]
[1724845175531,3.07104648,2530.9,2530.4,2.3191]
[1724845176087,5.0,2530.5,2530.4,2.3191]
[1724845185358,5.0,2530.5,2529.6,2.298]
[1724845185511,0.07104648,2530.4,2529.7,2.298]
[1724845185852,0.07104648,2530.4,2529.8,2.298]
[1724845186211,0.07104648,2530.4,2529.9,0.12931247]
[1724845186447,0.07104648,2530.4,2530.0,2.4486]
[1724845186644,5.0,2530.5,2530.0,2.57791247]
[1724845187626,0.07104648,2530.4,2530.0,2.57791247]
[1724845188413,5.0,2530.5,2530.0,2.57791247]
[1724845191748,5.0,2530.5,2530.1,0.07903647]
[1724845191949,5.0,2530.5,2530.2,2.4018]
[1724845192318,5.0,2530.5,2530.3,0.12911038]
[1724845192667,5.0,2530.5,2530.2,2.4018]
[1724845192951,5.0,2530.5,2530.4,0.12911038]
[1724845193167,5.0,2530.5,2530.3,0.12905266]
[1724845193322,5.0,2530.5,2530.2,2.4018]
[1724845193517,5.0,2530.5,2530.4,0.12905266]
[1724845193721,5.0,2530.5,2530.2,2.4018]
[1724845193923,0.07104648,2530.4,2530.2,2.4018]
[1724845194237,0.07104648,2530.4,2530.3,0.12905266]
[1724845194447,0.07104648,2530.4,2530.2,2.4018]
[1724845194662,0.07104648,2530.4,2530.3,0.12901418]
[1724845194862,0.07104648,2530.4,2530.2,2.4018]
[1724845195081,0.07104648,2530.4,2530.3,0.12901418]
[1724845195224,0.07104648,2530.4,2530.2,2.4018]
[1724845195422,0.57815113,2530.4,2530.3,0.12901418]
[1724845195738,0.57815113,2530.4,2529.8,2.271]
[1724845196226,0.55781511,2530.3,2529.9,0.12903342]
[1724845196428,0.07104648,2530.2,2529.8,2.271]
[1724845196629,0.07104648,2530.2,2530.0,0.12903342]
[1724845196859,0.07104648,2530.2,2529.8,2.271]
[1724845197074,0.07104648,2530.2,2530.1,0.12903342]
[1724845197367,0.07104648,2530.2,2529.8,2.271]
[1724845197525,0.36843264,2530.2,2530.1,0.12903342]
[1724845197724,0.36843264,2530.2,2529.8,2.271]
[1724845197933,0.36843264,2530.2,2530.1,0.12903342]
[1724845198156,0.36843264,2530.2,2529.8,2.271]
[1724845198357,0.36843264,2530.2,2530.1,0.1292547]
[1724845198567,0.36843264,2530.2,2529.8,2.271]
[1724845198791,0.36843264,2530.2,2530.1,0.1292547]
[1724845198918,0.36843264,2530.2,2529.8,2.271]
[1724845199118,0.36843264,2530.2,2530.1,0.1292547]
[1724845199322,0.36843264,2530.2,2529.8,2.271]
[1724845199563,0.36843264,2530.2,2530.1,0.1292547]
[1724845199771,0.36843264,2530.2,2529.6,2.4005]
[1724845200235,0.36843264,2530.2,2529.7,0.1292547]
[1724845201156,0.36843264,2530.2,2529.8,2.4145]
[1724845201354,0.07104648,2530.2,2529.8,2.4145]
[1724845201525,0.07104648,2530.2,2529.9,0.12924507]
[1724845202872,2.87876058,2530.4,2530.0,2.2865]
[1724845203450,4.89463664,2530.4,2530.0,2.2865]
[1724845203791,4.89463664,2530.4,2530.1,0.12869487]
[1724845203792,7.18803664,2530.4,2530.1,0.12869487]
[1724845203975,4.38032254,2530.4,2530.1,0.12869487]
[1724845204141,2.36444648,2530.4,2529.5,2.4913]
[1724845204668,2.36444648,2530.4,2529.6,0.12869487]
[1724845208695,2.36444648,2530.4,2529.7,2.3625]
[1724845208978,0.07104648,2530.4,2529.8,0.07905456]
[1724845209139,0.07104648,2530.4,2529.9,2.3625]
[1724845209578,0.07104648,2530.4,2530.0,0.12881994]
[1724845211570,2.4776,2530.3,2530.0,0.12881994]
[1724845211895,0.07104648,2530.2,2529.7,2.2695]
[1724845212206,0.32591113,2530.2,2530.1,0.12881994]
[1724845212363,0.32591113,2530.2,2529.7,2.2695]
[1724845212559,0.32591113,2530.2,2530.1,0.12881994]
[1724845212811,0.32591113,2530.2,2529.7,2.2695]
[1724845212966,0.32591113,2530.2,2530.1,0.12881994]
[1724845213165,0.32591113,2530.2,2529.2,0.41250267]
[1724845213166,2.4734,2530.1,2529.2,0.41250267]
[1724845213524,2.4734,2530.1,2528.9,2.3265]
[1724845213525,2.2723,2529.9,2528.9,2.3265]
[1724845213680,0.07104648,2529.8,2528.9,2.3265]
[1724845213863,0.33337424,2529.8,2528.9,2.3265]
[1724845214067,0.07104648,2529.7,2528.9,2.3265]
[1724845214568,2.3472,2529.6,2528.9,2.3265]
[1724845214912,0.07104648,2529.5,2528.9,2.3265]
[1724845215075,2.342,2529.4,2528.6,2.4408]
[1724845215278,2.342,2529.4,2529.0,0.11584242]
[1724845215279,0.07104648,2529.3,2529.0,0.11584242]
[1724845215609,2.342,2529.4,2528.6,2.4408]
[1724845215610,5.342,2529.4,2528.6,2.4408]
[1724845215809,5.342,2529.4,2529.1,0.11584242]
[1724845215994,5.342,2529.4,2528.6,2.4408]
[1724845216170,5.90038247,2529.4,2529.2,0.11584242]
[1724845216373,5.342,2529.4,2528.6,2.4408]
[1724845216593,5.342,2529.4,2529.3,0.11584242]
[1724845216783,5.342,2529.4,2528.6,2.4408]
[1724845216993,5.90038247,2529.4,2528.6,2.72612819]
[1724845217201,5.90038247,2529.4,2528.7,0.11584242]
[1724845218306,0.07104648,2529.3,2528.7,0.11584242]
[1724845221597,0.07104648,2529.3,2528.3,2.3756]
[1724845221801,2.87876058,2529.3,2528.8,0.11584242]
[1724845222114,3.0,2529.2,2528.3,2.78806839]
[1724845222316,0.07104648,2529.1,2528.9,0.11584242]
[1724845222518,2.98715507,2529.1,2528.3,2.3756]
[1724845222718,2.98715507,2529.1,2529.0,0.11584242]
[1724845222910,2.98715507,2529.1,2528.3,2.3756]
[1724845223106,2.98715507,2529.1,2529.0,0.111981]
[1724845223427,0.07104648,2529.1,2528.7,2.2791]
[1724845223925,0.07104648,2529.2,2528.7,2.2791]
[1724845224128,0.65485473,2529.2,2528.7,2.2791]
[1724845225944,0.65485473,2529.2,2528.4,2.4351]
[1724845226096,2.3377,2529.1,2528.4,2.4351]
[1724845226292,0.07104648,2529.0,2528.5,0.111981]
[1724845227114,0.07104648,2529.0,2528.5,0.19107288]
[1724845228024,0.07104648,2529.0,2528.5,0.111981]
[1724845228538,0.37030195,2529.0,2528.5,0.111981]
[1724845228909,0.37030195,2529.0,2528.2,2.3699]
[1724845229059,0.37030195,2529.0,2528.6,0.1129995]
[1724845229365,0.37030195,2529.0,2528.3,0.07909442]
[1724845229516,0.37030195,2529.0,2528.7,0.1129995]
[1724845229852,0.37030195,2529.0,2528.3,0.07909442]
[1724845230223,0.37030195,2529.0,2528.2,2.3699]
[1724845230425,2.3377,2528.9,2528.2,2.3699]
[1724845230736,0.07104648,2528.8,2528.3,0.1129995]
[1724845230921,0.07104648,2528.8,2528.2,2.3699]
[1724845231747,0.07104648,2528.8,2528.3,0.1129995]
[1724845231945,0.89269254,2528.8,2528.2,2.3699]
[1724845232144,2.42014648,2528.7,2528.4,0.19569966]
[1724845232455,5.42014648,2528.7,2527.8,2.4494733]
[1724845232663,2.8077141,2529.0,2528.5,0.19690082]
[1724845232861,0.07104648,2528.8,2528.5,0.19690082]
[1724845233024,2.3491,2529.1,2528.3,2.3271]
[1724845233025,0.07104648,2529.0,2528.3,2.3271]
[1724845233471,3.07104648,2529.0,2528.3,2.3271]
[1724845234767,3.07104648,2529.0,2527.9,2.4642]
[1724845235122,3.07104648,2529.0,2528.0,0.19683352]
[1724845235322,0.62358279,2528.9,2528.0,0.19683352]
[1724845235580,0.07104648,2528.8,2528.0,0.19683352]
[1724845238825,0.07104648,2528.8,2528.1,2.33469981]
[1724845239028,0.07104648,2528.9,2528.1,2.33469981]
[1724845239259,0.07104648,2528.9,2528.2,0.44528711]
[1724845239451,3.07104648,2529.0,2528.3,0.07908952]
[1724845239657,0.07104648,2528.9,2528.2,0.44528711]
[1724845239853,0.69462927,2528.9,2528.1,2.2556]
[1724845240024,2.4701,2528.8,2528.1,2.2556]
[1724845240237,0.07104648,2528.7,2528.2,0.19230681]
[1724845242742,0.07104648,2528.7,2527.9,2.3302]
[1724845242982,0.07104648,2528.7,2528.3,0.19238372]
[1724845243173,0.07104648,2528.7,2527.9,2.3302]
[1724845243353,0.07104648,2528.7,2528.4,0.19238372]
[1724845243562,0.8094749,2528.7,2527.9,2.3302]
[1724845243896,0.07104648,2528.7,2528.5,0.19238372]
[1724845244054,0.07104648,2528.7,2527.9,2.3302]
[1724845244259,0.07104648,2528.7,2528.0,0.19235488]
[1724845244474,0.07104648,2528.7,2528.0,0.4568477]
[1724845245270,2.3168,2528.5,2528.0,0.19235488]
[1724845245471,0.07104648,2528.4,2528.0,0.19235488]
[1724845245788,2.38784648,2528.5,2528.1,0.19241257]
[1724845246186,0.07104648,2528.5,2527.9,2.65456503]
[1724845246347,0.07104648,2528.5,2527.9,2.4093077]
[1724845246546,0.07104648,2528.5,2528.0,0.19251834]
[1724845247275,2.4732,2528.4,2528.0,0.19251834]
[1724845247598,2.4732,2528.4,2527.9,0.07910774]
[1724845247802,0.07104648,2528.5,2528.1,0.19246065]
[1724845247997,0.07104648,2528.5,2527.9,0.07910774]
[1724845248202,4.22666479,2528.6,2527.9,0.07910774]
[1724845248363,4.22666479,2528.6,2528.0,0.19249911]
[1724845248695,2.2984,2528.4,2528.0,0.19249911]
[1724845249060,2.2984,2528.4,2527.8,2.5092733]
[1724845249290,2.2984,2528.4,2528.1,0.19249911]
[1724845249603,2.2984,2528.4,2527.8,2.5092733]
[1724845250098,2.2984,2528.4,2527.9,0.19249911]
[1724845250655,0.07104648,2528.5,2527.9,0.19249911]
[1724845250855,0.74594761,2528.5,2527.9,0.19249911]
[1724845251357,0.67490113,2528.5,2528.0,0.07910342]
[1724845251602,6.74901127,2528.6,2528.0,0.07910342]
[1724845251754,6.74901127,2528.6,2528.1,0.19249911]
[1724845251954,6.74901127,2528.6,2527.8,2.5092733]
[1724845252154,0.67490113,2528.5,2528.2,0.19249911]
[1724845252383,0.67490113,2528.5,2527.8,2.5092733]
[1724845252578,0.67490113,2528.5,2528.3,0.19249911]
[1724845252796,0.67490113,2528.5,2527.8,2.5092733]
[1724845253209,0.07104648,2528.4,2527.9,0.19249911]
[1724845253502,0.81343772,2528.4,2527.9,0.19249911]
[1724845253675,0.07104648,2528.5,2527.9,0.19249911]
[1724845254061,0.07104648,2528.7,2528.0,2.35120705]
[1724845254397,4.22666479,2528.6,2528.1,0.19275874]
[1724845254596,4.29771127,2528.6,2528.0,2.35120705]
[1724845254801,4.29771127,2528.6,2528.2,0.19275874]
[1724845255096,0.83085311,2528.5,2528.0,2.2721]
[1724845255270,0.83085311,2528.5,2528.3,0.19275874]
[1724845255475,0.83085311,2528.5,2528.0,2.2721]
[1724845255659,4.29771127,2528.6,2528.1,0.19275874]
[1724845255992,1.76121641,2528.4,2528.1,0.079101]
[1724845256173,1.76121641,2528.4,2528.2,0.19275874]
[1724845257598,1.76121641,2528.4,2528.0,2.2721]
[1724845257770,1.76121641,2528.4,2528.3,0.19275874]
[1724845257976,1.76121641,2528.4,2528.0,2.2721]
[1724845258597,1.76121641,2528.4,2528.1,0.27185991]
[1724845259998,1.76121641,2528.4,2528.1,0.19275874]
[1724845260297,5.1940141,2528.8,2528.1,0.27185928]
[1724845260503,1.76121641,2528.7,2528.2,2.4949]
[1724845260660,1.76121641,2528.7,2528.3,0.07909537]
[1724845260997,3.0,2529.0,2528.4,2.4425]
[1724845261295,1.76121641,2528.8,2528.5,0.07908663]
[1724845261463,1.76121641,2528.8,2528.6,0.19275874]
[1724845261876,1.76121641,2528.8,2528.4,2.4425]
[1724845262210,1.76121641,2528.5,2528.1,2.2992]
[1724845263202,1.76121641,2528.3,2528.1,2.2992]
[1724845263589,1.76121641,2528.3,2527.8,0.1223733]
[1724845263790,1.76121641,2528.3,2527.9,2.4001]
[1724845263991,4.22731379,2528.6,2527.9,2.4001]
[1724845264295,4.76602844,2528.6,2527.9,2.4001]
[1724845266319,2.32444648,2528.5,2527.9,2.4001]
[1724845266668,4.22731379,2528.4,2527.9,2.4001]
[1724845267504,4.76602844,2528.6,2528.0,0.07910672]
[1724845267801,4.22731379,2528.6,2528.1,2.3599]
[1724845268103,4.22731379,2528.6,2528.1,2.43899957]
[1724845268592,4.22731379,2528.6,2528.2,0.19266258]
[1724845269415,4.22731379,2528.6,2528.2,0.27176102]
[1724845269613,4.22731379,2528.8,2528.2,0.53492712]
[1724845270691,4.22731379,2528.5,2528.2,0.19266258]
[1724845271102,0.07104648,2528.4,2528.2,0.19266258]
[1724845271488,0.07104648,2528.4,2527.9,2.3466]
[1724845271672,0.07104648,2528.4,2528.3,0.19250873]
[1724845271874,0.74512251,2528.4,2527.9,2.3466]
[1724845272074,0.07104648,2528.4,2527.9,2.3466]
[1724845272370,0.07104648,2528.5,2528.0,0.19250873]
[1724845273511,0.07104648,2528.6,2528.0,0.19250873]
[1724845275618,0.07104648,2528.6,2528.1,2.385]
[1724845276268,0.07104648,2528.6,2528.2,0.19250873]
[1724845276473,3.07104648,2528.9,2528.2,0.19250873]
[1724845276670,1.25554744,2528.8,2528.2,0.19250873]
[1724845276872,0.07104648,2528.7,2528.2,0.19250873]
[1724845277714,0.07104648,2528.7,2528.3,2.4636]
[1724845277897,2.8077141,2529.0,2528.3,2.54270007]
[1724845278224,0.07104648,2528.9,2528.4,0.19276836]
[1724845279312,0.07104648,2528.9,2528.5,2.3978]
[1724845279515,2.8077141,2529.0,2528.5,2.47689322]
[1724845279516,0.07104648,2529.0,2528.5,2.47689322]
[1724845279727,2.2989,2529.5,2528.7,2.3978]
[1724845279937,2.2989,2529.5,2528.8,0.07907948]
[1724845280099,0.07104648,2529.4,2528.9,2.3978]
[1724845280430,4.22731379,2529.5,2528.9,2.3978]
[1724845280603,0.49377786,2529.4,2529.0,0.19260491]
[1724845280783,4.22731379,2529.3,2529.0,0.19260491]
[1724845280983,0.07104648,2529.2,2529.0,0.19260491]
[1724845281187,0.07104648,2529.2,2528.7,2.3376]
[1724845281917,0.07104648,2529.2,2528.8,0.19030585]
[1724845282089,0.54315565,2529.2,2528.8,0.19030585]
[1724845282502,0.07104648,2529.2,2528.8,0.19030585]
[1724845282810,0.07104648,2529.3,2528.8,0.19030585]
[1724845283520,4.29836027,2529.3,2528.7,2.3376]
[1724845283724,0.07104648,2529.2,2528.7,2.3376]
[1724845283894,0.07104648,2529.2,2528.8,0.18975463]
[1724845285852,0.07104648,2529.3,2528.9,2.3994]
[1724845286207,3.07104648,2529.4,2528.9,2.3994]
[1724845286412,0.07104648,2529.3,2529.0,0.18966819]
[1724845286725,0.07104648,2529.5,2529.0,0.18966819]
[1724845287532,3.94487279,2529.6,2529.0,0.18966819]
[1724845287857,0.05039413,2529.5,2529.0,0.18966819]
[1724845288353,1.15342361,2529.5,2529.0,0.18966819]
[1724845288764,1.15342361,2529.5,2528.9,2.3994]
[1724845289312,7.6904374,2529.5,2528.9,2.3994]
[1724845289517,3.0,2529.4,2528.9,2.3994]
[1724845289749,0.05039413,2529.3,2528.9,2.3994]
[1724845298026,1.76033054,2529.2,2528.9,2.3994]
[1724845298227,1.76033054,2529.2,2529.0,0.18991792]
[1724845301159,1.76033054,2529.4,2529.1,2.3245]
[1724845301577,0.05039413,2529.6,2529.1,2.55695]
[1724845301869,2.8077141,2530.2,2529.3,1.76033054]
[1724845302165,0.05039413,2530.1,2529.5,2.4786]
[1724845302336,6.76033054,2530.0,2529.5,2.4786]
[1724845302673,1.76033054,2529.6,2529.5,2.4786]
[1724845303336,1.76033054,2529.6,2529.2,2.4304]
[1724845303574,1.76033054,2529.4,2529.2,2.4304]
[1724845304069,0.05039413,2529.5,2529.2,2.4304]
[1724845304438,0.05039413,2529.7,2529.2,2.4304]
[1724845305128,0.05039413,2529.7,2529.3,0.18954341]
[1724845305350,0.75862993,2529.7,2529.0,2.3877]
[1724845305552,4.22424976,2529.6,2529.1,0.18974506]
[1724845305728,0.05039413,2529.5,2529.1,0.18974506]
[1724845307539,0.05039413,2529.7,2529.2,2.3877]
[1724845307854,0.05039413,2529.7,2529.3,0.18949534]
[1724845308048,0.05039413,2529.7,2529.2,2.3877]
[1724845308257,0.05039413,2529.7,2529.4,0.18949534]
[1724845308444,0.05039413,2529.7,2529.2,2.3877]
[1724845308639,0.05039413,2529.7,2529.5,0.18949534]
[1724845308843,0.05039413,2529.7,2529.2,2.3877]
[1724845309066,0.05039413,2529.7,2529.6,0.18949534]
[1724845309230,0.05039413,2529.7,2529.2,2.3877]
[1724845309431,0.05039413,2529.7,2529.6,0.18949534]
[1724845309635,0.05039413,2529.7,2529.2,2.3877]
[1724845310268,0.89116807,2529.7,2529.3,0.18949534]
[1724845310770,0.89116807,2529.7,2529.2,2.3877]
[1724845310937,4.22424976,2529.5,2529.4,0.18949534]
[1724845311140,7.27464389,2529.5,2528.8,2.3839]
[1724845311344,4.27464389,2529.5,2528.9,0.42783732]
[1724845311552,4.27464389,2529.5,2528.9,0.18944732]
[1724845311869,0.05039413,2529.6,2529.0,2.46297339]
[1724845312174,0.05039413,2529.6,2529.2,2.3858]
[1724845312851,0.05039413,2529.6,2529.3,0.18947613]
[1724845313169,0.05039413,2529.6,2529.2,2.3858]
[1724845313374,0.05039413,2529.6,2529.4,0.18947613]
[1724845313667,0.05039413,2529.6,2529.2,2.3858]
[1724845313868,1.05862993,2529.6,2529.2,2.3858]
[1724845314069,1.05862993,2529.6,2529.3,0.18947613]
[1724845314245,1.05862993,2529.6,2529.2,2.3858]
[1724845314771,1.05862993,2529.6,2529.3,0.18947613]
[1724845314941,1.05862993,2529.6,2529.2,2.3858]
[1724845315148,1.05862993,2529.6,2529.3,0.18947613]
[1724845315358,1.05862993,2529.6,2529.2,2.3858]
[1724845316073,1.05862993,2529.6,2529.3,0.18947613]
[1724845316478,1.05862993,2529.6,2528.5,2.4181]
[1724845316479,0.82828797,2529.5,2528.5,2.4181]
[1724845316665,0.05039413,2529.4,2528.5,2.4181]
[1724845316843,0.05039413,2529.4,2528.7,2.3418]
[1724845317179,0.05039413,2529.6,2528.7,2.3418]
[1724845317348,0.05039413,2529.6,2528.8,0.42365613]
[1724845317868,0.05039413,2529.6,2528.9,2.2645]
[1724845318445,0.05039413,2529.6,2529.0,0.18947613]
[1724845318648,0.05039413,2529.6,2529.1,2.2645]
[1724845319044,0.05039413,2529.6,2529.2,0.18947613]
[1724845319669,0.05039413,2529.6,2529.1,2.2645]
[1724845320032,0.05039413,2529.6,2529.2,0.18947613]
[1724845320430,0.05039413,2529.6,2529.1,2.2645]
[1724845320667,3.05039413,2529.7,2529.3,0.18947613]
[1724845320830,3.05039413,2529.7,2529.4,2.4856]
[1724845321970,4.22424976,2529.6,2528.8,2.4856]
[1724845322156,0.05039413,2529.5,2528.8,2.4856]
[1724845322360,0.05039413,2529.5,2528.8,2.83783073]
[1724845322540,6.49404976,2529.4,2528.8,2.4856]
[1724845322762,0.05039413,2529.3,2528.8,2.4856]
[1724845323192,0.05039413,2529.4,2528.8,2.4856]
[1724845323398,0.05039413,2529.4,2529.0,2.3135]
[1724845329185,0.05039413,2529.6,2529.0,2.3135]
[1724845329915,21.66816386,2529.8,2529.1,2.51067532]
[1724845329916,15.0877141,2529.8,2529.1,2.51067532]
[1724845330081,5.0,2530.0,2529.2,1.37581174]
[1724845330299,5.0,2530.0,2529.1,0.07907532]
[1724845330300,0.05039413,2529.9,2529.4,2.4755]
[1724845331183,5.05039413,2530.0,2529.5,0.07906249]
[1724845331428,5.0,2530.0,2529.6,2.3299]
[1724845332186,0.05039413,2529.9,2529.6,2.3299]
[1724845332417,0.05039413,2529.9,2529.3,2.3816]
[1724845332619,0.55543354,2529.9,2529.3,2.3816]
[1724845332987,0.05039413,2529.9,2529.3,2.3816]
[1724845334133,0.05039413,2529.9,2529.4,0.18279726]
[1724845334612,0.05039413,2529.9,2529.3,2.3816]
[1724845335120,0.05039413,2529.9,2529.4,0.18279726]
[1724845335499,0.05039413,2529.9,2529.3,2.3816]
[1724845336535,0.05039413,2529.9,2529.4,0.18288368]
[1724845336929,0.05039413,2529.9,2529.3,2.3816]
[1724845337520,0.05039413,2529.9,2529.4,0.18288368]
[1724845337727,0.05039413,2529.9,2529.3,2.3816]
[1724845338154,1.7596861,2529.7,2529.3,2.3816]
[1724845338339,0.05039413,2529.6,2529.4,0.18288368]
[1724845338816,1.7596861,2529.7,2529.3,2.3816]
[1724845339021,1.7596861,2529.7,2529.5,0.17682469]
[1724845339341,0.05039413,2529.6,2529.3,2.3816]
[1724845339645,0.05039413,2529.6,2529.4,0.17677668]
[1724845339813,0.05039413,2529.6,2529.3,2.3816]
[1724845340016,0.05039413,2529.6,2529.5,0.17678628]
[1724845340204,0.05039413,2529.6,2529.3,2.3816]
[1724845340538,0.05039413,2529.7,2529.5,0.17678628]
[1724845340701,1.81008023,2529.7,2529.3,2.3816]
[1724845341100,1.81008023,2529.7,2529.4,0.1768439]
[1724845341297,1.81008023,2529.7,2529.3,2.3816]